bitfinex/quotes_BTCUSD_20230110
["timestamp","ask_amount","ask_price","bid_price","bid_amount"]
[1673340672552,2.4706233,17261.0,17260.0,0.108]
[1673340672847,0.09049542,17260.0,17259.0,0.02837381]
[1673340673081,0.51959188,17260.0,17259.0,0.02837381]
[1673340673323,1.88061385,17260.0,17259.0,0.02837381]
[1673340674160,1.45151739,17260.0,17259.0,0.02837381]
[1673340674343,1.63384338,17260.0,17259.0,0.02837381]
[1673340674598,1.37381296,17260.0,17259.0,0.02837381]
[1673340674836,2.03697409,17260.0,17259.0,0.02837381]
[1673340675092,1.78984895,17260.0,17259.0,0.02837381]
[1673340675607,1.86684895,17260.0,17259.0,0.03737381]
[1673340677360,2.29594541,17260.0,17259.0,0.03737381]
[1673340677838,2.12784541,17260.0,17259.0,0.0372715]
[1673340678348,2.56124437,17260.0,17259.0,0.0372715]
[1673340678604,2.12784541,17260.0,17259.0,0.0372715]
[1673340678842,2.30132504,17260.0,17259.0,0.0372715]
[1673340679089,1.69856532,17260.0,17259.0,0.0372715]
[1673340679597,1.95408712,17260.0,17259.0,0.0372715]
[1673340679842,1.52499066,17260.0,17259.0,0.0372715]
[1673340681859,1.52499066,17260.0,17259.0,0.0372115]
[1673340682357,1.26525496,17260.0,17259.0,0.0372115]
[1673340684147,1.09211104,17260.0,17259.0,0.0372115]
[1673340685958,1.26525496,17260.0,17259.0,0.0372115]
[1673340689515,1.52499066,17260.0,17259.0,0.0372115]
[1673340693051,2.1980392,17260.0,17259.0,0.0372115]
[1673340693303,2.37170246,17260.0,17259.0,0.0372115]
[1673340693560,2.4471933,17260.0,17259.0,0.0372115]
[1673340694062,2.7471933,17260.0,17259.0,0.0372115]
[1673340694834,2.40047472,17260.0,17259.0,0.0372115]
[1673340695352,1.47528272,17260.0,17259.0,0.0372115]
[1673340697171,1.47528272,17260.0,17259.0,0.0342115]
[1673340698193,2.64264015,17260.0,17259.0,0.0342115]
[1673340698460,2.06923039,17260.0,17259.0,0.0342115]
[1673340698732,2.59036304,17260.0,17259.0,0.0342115]
[1673340698974,2.06923039,17260.0,17259.0,0.0342115]
[1673340699229,2.59036304,17260.0,17259.0,0.0342115]
[1673340699735,3.21954323,17260.0,17259.0,0.0342115]
[1673340700004,2.91954323,17260.0,17259.0,0.0342115]
[1673340700226,3.21954323,17260.0,17259.0,0.0342115]
[1673340700752,2.69841058,17260.0,17259.0,0.0342115]
[1673340700989,2.59036304,17260.0,17259.0,0.0342115]
[1673340701500,3.25602928,17260.0,17259.0,0.0342115]
[1673340702022,2.59036304,17260.0,17259.0,0.0342115]
[1673340702772,3.2484008,17260.0,17259.0,0.0342115]
[1673340703295,2.59036304,17260.0,17259.0,0.0342115]
[1673340703788,3.18532458,17260.0,17259.0,0.0342115]
[1673340705075,2.23509547,17260.0,17259.0,0.0342115]
[1673340705318,2.45622812,17260.0,17259.0,0.0342115]
[1673340706591,0.7475378,17260.0,17259.0,0.27188939]
[1673340706879,0.7475378,17260.0,17259.0,0.0342115]
[1673340706880,1.181251,17260.0,17259.0,0.0342115]
[1673340707125,1.61512714,17260.0,17259.0,0.0342115]
[1673340708888,1.9543465,17260.0,17259.0,0.0342115]
[1673340709135,1.60725249,17260.0,17259.0,0.0342115]
[1673340710201,1.17337635,17260.0,17259.0,0.0342115]
[1673340713304,1.694509,17260.0,17259.0,0.0342115]
[1673340713711,1.17337635,17260.0,17259.0,0.0342115]
[1673340716292,1.694509,17260.0,17259.0,0.0342115]
[1673340717076,1.17337635,17260.0,17259.0,0.0342115]
[1673340720571,1.694509,17260.0,17259.0,0.0342115]
[1673340722537,1.17337635,17260.0,17259.0,0.0342115]
[1673340723036,1.694509,17260.0,17259.0,0.0342115]
[1673340723281,1.17337635,17260.0,17259.0,0.0342115]
[1673340724253,1.60756938,17260.0,17259.0,0.0342115]
[1673340724510,1.35993902,17260.0,17259.0,0.73824525]
[1673340724766,1.35993902,17260.0,17259.0,0.71303375]
[1673340725017,1.54495087,17260.0,17259.0,0.71303375]
[1673340725360,1.11076949,17260.0,17259.0,0.71303375]
[1673340727143,1.28444818,17260.0,17259.0,0.71303375]
[1673340727384,1.11072447,17260.0,17259.0,0.71303375]
[1673340727871,1.11072447,17260.0,17259.0,1.07400875]
[1673340728373,0.93699326,17260.0,17259.0,1.07400875]
[1673340728619,1.11072447,17260.0,17259.0,1.07400875]
[1673340728870,0.93699317,17260.0,17259.0,1.07400875]
[1673340729116,1.11072447,17260.0,17259.0,1.07400875]
[1673340729360,0.93696378,17260.0,17259.0,0.71303375]
[1673340730098,0.93696378,17260.0,17259.0,1.07400875]
[1673340730588,0.93696378,17260.0,17259.0,0.71303375]
[1673340731084,0.93696378,17260.0,17259.0,1.07400875]
[1673340731588,0.93696378,17260.0,17259.0,0.71303375]
[1673340732351,0.67650611,17260.0,17259.0,0.71303375]
[1673340732879,0.67650611,17260.0,17259.0,1.07391892]
[1673340734155,0.60729534,17260.0,17259.0,1.06500875]
[1673340734407,0.63429534,17260.0,17259.0,1.06600875]
[1673340734666,0.63429534,17260.0,17259.0,0.70503375]
[1673340734912,0.89475301,17260.0,17259.0,0.70503375]
[1673340737027,0.89475301,17260.0,17259.0,1.06600875]
[1673340738777,0.63429534,17260.0,17259.0,1.06600875]
[1673340741074,0.63429534,17260.0,17259.0,1.1540434]
[1673340741604,0.4607132,17260.0,17259.0,1.1540434]
[1673340748650,0.4607132,17260.0,17259.0,0.7930684]
[1673340748651,0.63429534,17260.0,17259.0,0.7930684]
[1673340749430,0.89475301,17260.0,17259.0,0.25553465]
[1673340751184,0.63429534,17260.0,17259.0,0.25553465]
[1673340757423,0.89475301,17260.0,17259.0,0.25553465]
[1673340760466,1.24209584,17260.0,17259.0,0.25553465]
[1673340761227,1.0685137,17260.0,17259.0,0.25553465]
[1673340762240,1.50269508,17260.0,17259.0,0.25553465]
[1673340762488,1.24223741,17260.0,17259.0,0.25553465]
[1673340763270,1.3424543,17260.0,17259.0,0.25553465]
[1673340765524,0.99511147,17260.0,17259.0,0.25553465]
[1673340766535,1.16704358,17260.0,17259.0,0.08903465]
[1673340771900,1.60130482,17260.0,17259.0,0.08903465]
[1673340774474,1.94868419,17260.0,17259.0,0.08903465]
[1673340774725,1.9486796,17260.0,17259.0,0.08903465]
[1673340777332,1.94866553,17260.0,17259.0,0.08903465]
[1673340777580,1.60130482,17260.0,17259.0,0.08903465]
[1673340779377,1.16704358,17260.0,17259.0,0.08903465]
[1673340781199,1.68817623,17260.0,17259.0,0.08903465]
[1673340782024,1.68807359,17260.0,17259.0,0.08903465]
[1673340784418,1.98807359,17260.0,17259.0,0.08903465]
[1673340784678,2.11717005,17260.0,17259.0,0.08903465]
[1673340785952,1.98807359,17260.0,17259.0,0.08903465]
[1673340786198,2.02327359,17260.0,17259.0,0.08903465]
[1673340786441,2.32327359,17260.0,17259.0,0.08903465]
[1673340786695,2.02327359,17260.0,17259.0,0.08903465]
[1673340786985,1.50214094,17260.0,17259.0,0.08903465]
[1673340788232,1.16694094,17260.0,17259.0,0.08903465]
[1673340789246,1.68807359,17260.0,17259.0,0.08903465]
[1673340789987,1.16694094,17260.0,17259.0,0.08903465]
[1673340791755,1.68807359,17260.0,17259.0,0.08903465]
[1673340792281,2.11717005,17260.0,17259.0,0.08903465]
[1673340792538,1.68807359,17260.0,17259.0,0.08903465]
[1673340796389,2.11717005,17260.0,17259.0,0.08903465]
[1673340796931,1.68807359,17260.0,17259.0,0.08903465]
[1673340799448,2.41717005,17260.0,17259.0,0.08903465]
[1673340799958,1.28992391,17260.0,17259.0,0.08903465]
[1673340800467,1.94351892,17260.0,17259.0,0.08903465]
[1673340800964,2.46440489,17260.0,17259.0,0.08903465]
[1673340802225,1.94351892,17260.0,17259.0,0.08903465]
[1673340802478,1.94351892,17260.0,17259.0,0.08895327]
[1673340803762,2.27821892,17260.0,17259.0,0.08895327]
[1673340804258,2.2166771,17260.0,17259.0,0.08895327]
[1673340815282,1.9166771,17260.0,17259.0,0.08895327]
[1673340815546,2.00864783,17260.0,17259.0,0.08895327]
[1673340815807,1.48758064,17260.0,17259.0,0.08895327]
[1673340816065,2.00866392,17260.0,17259.0,0.08895327]
[1673340816587,1.67396392,17260.0,17259.0,0.08895327]
[1673340818370,2.10306038,17260.0,17259.0,0.15079127]
[1673340818622,1.67396392,17260.0,17259.0,0.15079127]
[1673340819373,1.5819771,17260.0,17259.0,0.15079127]
[1673340819626,1.8819771,17260.0,17259.0,0.15079127]
[1673340820904,1.45288064,17260.0,17259.0,0.15079127]
[1673340821145,1.8819771,17260.0,17259.0,0.15079127]
[1673340822946,1.42588064,17260.0,17259.0,0.14987265]
[1673340823216,1.53788064,17260.0,17259.0,0.15687265]
[1673340823464,1.23788064,17260.0,17259.0,0.15687265]
[1673340823725,1.23336654,17260.0,17259.0,0.15687265]
[1673340823996,0.80427008,17260.0,17259.0,0.15687265]
[1673340825776,1.10427008,17260.0,17259.0,0.15687265]
[1673340826778,1.10427008,17260.0,17259.0,0.156758]
[1673340828297,1.53336654,17260.0,17259.0,0.156758]
[1673340828815,1.10427008,17260.0,17259.0,0.156758]
[1673340829848,1.69104484,17260.0,17259.0,0.156758]
[1673340832159,0.80427008,17260.0,17259.0,0.156758]
[1673340832408,1.10427008,17260.0,17259.0,0.156758]
[1673340832955,0.80427008,17260.0,17259.0,0.156758]
[1673340841160,1.10427008,17260.0,17259.0,0.156758]
[1673340841413,0.80427008,17260.0,17259.0,0.156758]
[1673340844779,1.32572003,17260.0,17259.0,0.156758]
[1673340845531,0.80427008,17260.0,17259.0,0.156758]
[1673340847061,1.10427008,17260.0,17259.0,0.156758]
[1673340847327,0.80427008,17260.0,17259.0,0.156758]
[1673340849666,0.80427008,17260.0,17259.0,0.15666177]
[1673340857839,1.32579354,17260.0,17259.0,0.15666177]
[1673340860562,0.80427008,17260.0,17259.0,0.15666177]
[1673340862921,0.73371077,17260.0,17259.0,0.15666177]
[1673340863186,0.73371077,17260.0,17259.0,1.28241941]
[1673340863439,0.5465282,17260.0,17259.0,1.21284152]
[1673340863724,0.89414249,17260.0,17259.0,1.21284152]
[1673340864262,0.72032223,17260.0,17259.0,1.21284152]
[1673340864513,0.68532223,17260.0,17259.0,1.21284152]
[1673340865033,0.51136523,17260.0,17259.0,1.21284152]
[1673340865573,0.17365729,17260.0,17259.0,1.20584152]
[1673340865841,0.17665729,17260.0,17259.0,1.27284152]
[1673340866108,0.003,17260.0,17259.0,1.44094152]
[1673340866888,0.003,17260.0,17259.0,2.44094152]
[1673340868911,0.003,17260.0,17259.0,1.44094152]
[1673340872342,0.003,17260.0,17259.0,2.44094152]
[1673340873376,0.003,17260.0,17259.0,2.44174739]
[1673340876989,0.003,17260.0,17259.0,1.44174739]
[1673340879727,0.003,17260.0,17259.0,1.44094152]
[1673340883414,0.003,17260.0,17259.0,1.44174739]
[1673340888243,0.003,17260.0,17259.0,1.27364739]
[1673340889592,0.68427887,17262.0,17260.0,0.2]
[1673340889820,0.68427887,17262.0,17261.0,0.360975]
[1673340890293,0.01817118,17262.0,17261.0,0.360975]
[1673340891857,0.06317118,17262.0,17261.0,0.364975]
[1673340892102,0.06317118,17262.0,17261.0,0.004]
[1673340893100,0.06317118,17262.0,17261.0,0.52658796]
[1673340893348,0.06317118,17262.0,17261.0,0.88756296]
[1673340894097,0.06317118,17262.0,17261.0,0.88762296]
[1673340895615,0.06317118,17262.0,17261.0,0.52664796]
[1673340896344,0.06317118,17262.0,17261.0,0.88762296]
[1673340897102,0.06317118,17262.0,17261.0,0.52664796]
[1673340897351,0.06317118,17262.0,17261.0,0.88762296]
[1673340898332,0.06317118,17262.0,17261.0,0.52664796]
[1673340901078,0.23682847,17262.0,17261.0,0.52664796]
[1673340901328,0.23682847,17262.0,17261.0,0.52658796]
[1673340901581,0.06317118,17262.0,17261.0,0.52658796]
[1673340901812,0.06016718,17262.0,17261.0,0.52658796]
[1673340902818,0.49453241,17262.0,17261.0,0.52658796]
[1673340903072,0.74453241,17262.0,17261.0,0.88756296]
[1673340903321,0.48382447,17262.0,17261.0,0.88756296]
[1673340904078,0.48382447,17262.0,17261.0,0.52658796]
[1673340904597,0.48382447,17262.0,17261.0,0.88756296]
[1673340904846,0.74453241,17262.0,17261.0,0.88756296]
[1673340905866,0.74453241,17262.0,17261.0,0.52658796]
[1673340907358,0.74453241,17262.0,17261.0,1.05566296]
[1673340907359,0.48382447,17262.0,17261.0,1.05566296]
[1673340907615,0.31016718,17262.0,17261.0,1.05566296]
[1673340907871,0.31016718,17262.0,17261.0,1.22791482]
[1673340908413,0.31016718,17262.0,17261.0,0.70532686]
[1673340908636,0.26516718,17262.0,17261.0,1.39235434]
[1673340909402,0.26816718,17262.0,17261.0,1.35910248]
[1673340914213,0.26816718,17262.0,17261.0,1.69170211]
[1673340914470,0.26816718,17262.0,17261.0,3.08851156]
[1673340914735,0.26816718,17262.0,17261.0,4.281449]
[1673340915280,0.26816718,17262.0,17261.0,4.98009632]
[1673340915532,0.26816718,17262.0,17261.0,2.43315294]
[1673340915800,0.26816718,17262.0,17261.0,2.69170211]
[1673340916070,0.26816718,17262.0,17261.0,3.55415233]
[1673340916322,0.26816718,17262.0,17261.0,4.28125672]
[1673340916813,0.26816718,17262.0,17261.0,3.20022073]
[1673340917104,0.26816718,17262.0,17261.0,2.69170211]
[1673340917323,0.26816718,17262.0,17261.0,2.43315294]
[1673340917567,0.26816718,17262.0,17261.0,3.08846182]
[1673340918087,0.26816718,17262.0,17261.0,3.00928376]
[1673340918561,0.26816718,17262.0,17261.0,2.8370319]
[1673340919577,0.01621758,17263.0,17262.0,0.2]
[1673340919852,0.01621758,17263.0,17262.0,1.57848492]
[1673340921096,0.01921758,17263.0,17262.0,1.71848492]
[1673340923147,0.01921758,17263.0,17262.0,1.12864302]
[1673340923670,0.01921758,17263.0,17262.0,1.66174302]
[1673340923904,0.01817118,17264.0,17263.0,0.10129875]
[1673340924164,0.01817118,17264.0,17263.0,3.68489368]
[1673340924418,0.01817118,17264.0,17263.0,4.71914062]
[1673340924929,0.01817118,17264.0,17263.0,5.20287285]
[1673340925437,0.01817118,17264.0,17263.0,3.29445054]
[1673340925975,0.01817118,17264.0,17263.0,3.03642446]
[1673340926482,0.01817118,17264.0,17263.0,3.29451054]
[1673340926989,0.01817118,17264.0,17263.0,3.49451054]
[1673340927499,0.01817118,17264.0,17263.0,3.23648446]
[1673340928299,0.01817118,17264.0,17263.0,3.06446707]
[1673340928586,0.01817118,17264.0,17263.0,3.6766879]
[1673340928862,0.01817118,17264.0,17263.0,3.06446707]
[1673340929355,0.01817118,17264.0,17263.0,3.06440707]
[1673340929912,0.01817118,17264.0,17263.0,3.39784433]
[1673340930159,0.01817118,17264.0,17263.0,3.18356082]
[1673340931368,0.01817118,17264.0,17263.0,2.59630707]
[1673340931611,0.01817118,17264.0,17263.0,3.24201014]
[1673340931893,0.01817118,17264.0,17263.0,2.59630707]
[1673340932475,0.70018154,17265.0,17263.0,1.42837686]
[1673340932740,0.11713668,17265.0,17264.0,0.97589058]
[1673340932992,0.11713668,17265.0,17264.0,0.61491558]
[1673340934019,0.11813668,17265.0,17264.0,0.75491558]
[1673340936787,0.11813668,17265.0,17264.0,0.14]
[1673340937040,0.74530746,17265.0,17264.0,0.14]
[1673340937789,0.91896475,17265.0,17264.0,0.14]
[1673340938038,0.74530746,17265.0,17264.0,0.14]
[1673340938304,0.91896475,17265.0,17264.0,0.14]
[1673340938537,0.74530746,17265.0,17264.0,0.14]
[1673340939034,0.91896475,17265.0,17264.0,0.14]
[1673340939540,0.91896475,17265.0,17264.0,0.14006]
[1673340942007,1.17967269,17265.0,17264.0,0.14006]
[1673340943030,1.35362969,17265.0,17264.0,0.14006]
[1673340943763,0.91869821,17265.0,17264.0,0.14006]
[1673340944263,1.17940615,17265.0,17264.0,0.14006]
[1673340944524,1.17940615,17265.0,17264.0,0.14]
[1673340945532,1.17942869,17265.0,17264.0,0.14]
[1673340949306,0.91872075,17265.0,17264.0,0.14]
[1673340949557,1.17942869,17265.0,17264.0,0.14]
[1673340950541,1.17943646,17265.0,17264.0,0.14]
[1673340952770,1.35362969,17265.0,17264.0,0.14]
[1673340954779,1.52705973,17265.0,17264.0,0.14]
[1673340955291,1.17944544,17265.0,17264.0,0.14]
[1673340955545,1.17944544,17265.0,17264.0,0.13989735]
[1673340957032,1.52705179,17265.0,17264.0,0.13989735]
[1673340957288,1.35362969,17265.0,17264.0,0.13989735]
[1673340957546,1.52704421,17265.0,17264.0,0.13989735]
[1673340958070,1.35362969,17265.0,17264.0,0.13989735]
[1673340958332,1.52704478,17265.0,17264.0,0.13989735]
[1673340958581,1.35362969,17265.0,17264.0,0.13989735]
[1673340958832,1.5270442,17265.0,17264.0,0.13989735]
[1673340959080,1.52704402,17265.0,17264.0,0.13989735]
[1673340959308,1.17942973,17265.0,17264.0,0.13989735]
[1673340961521,0.91872179,17265.0,17264.0,0.13989735]
[1673340961760,0.91641079,17265.0,17264.0,0.13989735]
[1673340962241,1.17711873,17265.0,17264.0,0.13989735]
[1673340962492,0.91641079,17265.0,17264.0,0.13989735]
[1673340964249,0.74299646,17265.0,17264.0,0.13989735]
[1673340965501,0.28924001,17265.0,17264.0,0.13989735]
[1673340965779,0.11582568,17265.0,17264.0,0.77109251]
[1673340967337,0.28924001,17265.0,17264.0,0.77109251]
[1673340968134,0.001,17265.0,17264.0,1.13206751]
[1673340976839,0.001,17265.0,17264.0,2.55811089]
[1673340977870,0.01692879,17266.0,17265.0,0.2]
[1673340978155,0.01692879,17266.0,17265.0,1.49526509]
[1673340979199,0.01792879,17266.0,17265.0,1.62426509]
[1673340979957,0.01792879,17266.0,17265.0,1.19847885]
[1673340980726,0.01792879,17266.0,17265.0,1.19853885]
[1673340981233,0.01792879,17266.0,17265.0,1.62458223]
[1673340985818,0.01792879,17266.0,17265.0,1.62452223]
[1673340986056,0.01792879,17266.0,17265.0,1.62305441]
[1673340986304,0.01792879,17266.0,17265.0,1.28391838]
[1673340986566,0.01792879,17266.0,17265.0,1.58391838]
[1673340986816,0.01792879,17266.0,17265.0,1.75593577]
[1673340987097,0.01792879,17266.0,17265.0,1.92403577]
[1673340988404,0.01792879,17266.0,17265.0,2.2030347]
[1673340988699,0.01792879,17266.0,17265.0,2.03101731]
[1673340989213,0.01792879,17266.0,17265.0,1.45282398]
[1673340989749,0.01792879,17266.0,17265.0,2.01726162]
[1673340990515,0.01792879,17266.0,17265.0,1.45282398]
[1673340990775,0.01792879,17266.0,17265.0,2.25976656]
[1673340991030,0.01792879,17266.0,17265.0,1.95976656]
[1673340996296,0.01792879,17266.0,17265.0,2.25976656]
[1673340996541,0.01792879,17266.0,17265.0,2.60735209]
[1673340997303,0.01792879,17266.0,17265.0,2.1353347]
[1673341002543,0.02381061,17268.0,17266.0,0.2]
[1673341002812,0.02381061,17268.0,17267.0,0.528875]
[1673341003055,0.02381061,17268.0,17267.0,0.1679]
[1673341004316,0.03481061,17268.0,17267.0,0.1679]
[1673341005053,0.02381061,17268.0,17267.0,0.1679]
[1673341005315,0.02381061,17268.0,17267.0,0.3079]
[1673341005316,0.02481061,17268.0,17267.0,0.3079]
[1673341006292,0.02481061,17268.0,17267.0,0.30870549]
[1673341006547,0.02381061,17268.0,17267.0,0.16870549]
[1673341006789,0.02381061,17268.0,17267.0,0.30870549]
[1673341006790,0.02481061,17268.0,17267.0,0.30870549]
[1673341008576,0.02481061,17268.0,17267.0,0.14080549]
[1673341010103,0.02481061,17268.0,17267.0,0.14]
[1673341010358,0.19822494,17268.0,17267.0,0.14]
[1673341011622,0.02481061,17268.0,17267.0,0.14]
[1673341014149,0.19822494,17268.0,17267.0,0.14]
[1673341015824,0.02481061,17268.0,17267.0,0.14]
[1673341016415,0.19822494,17268.0,17267.0,0.14]
[1673341016650,0.02481061,17268.0,17267.0,0.14]
[1673341016884,0.19822494,17268.0,17267.0,0.14]
[1673341017377,0.02481061,17268.0,17267.0,0.14]
[1673341017617,0.0247245,17268.0,17267.0,0.34]
[1673341017847,0.19813883,17268.0,17267.0,0.34]
[1673341018310,0.19813883,17268.0,17267.0,0.14]
[1673341020604,0.45884677,17268.0,17267.0,0.14]
[1673341021107,0.1978304,17268.0,17267.0,0.34]
[1673341021343,0.45853834,17268.0,17267.0,0.14]
[1673341022073,0.45877304,17268.0,17267.0,0.14]
[1673341022554,0.6327383,17268.0,17267.0,0.14]
[1673341022822,0.6327383,17268.0,17266.0,0.64063454]
[1673341022823,0.6317383,17268.0,17266.0,0.64063454]
[1673341023067,0.17366907,17267.0,17266.0,0.64063454]
[1673341024711,0.17366907,17267.0,17266.0,0.77563454]
[1673341024951,0.17366907,17267.0,17266.0,0.64063454]
[1673341025249,0.17466907,17267.0,17266.0,0.77563454]
[1673341031129,0.17466907,17267.0,17266.0,0.135]
[1673341031367,0.98391232,17267.0,17266.0,0.135]
[1673341032117,1.15785754,17267.0,17266.0,0.135]
[1673341032362,1.33152184,17267.0,17266.0,0.135]
[1673341033371,1.6734421,17267.0,17266.0,0.135]
[1673341033620,1.8415421,17267.0,17266.0,0.135]
[1673341033871,1.84128041,17267.0,17266.0,0.135]
[1673341034378,2.1884858,17267.0,17266.0,0.135]
[1673341034623,1.84128041,17267.0,17266.0,0.135]
[1673341034868,3.00018805,17267.0,17266.0,0.135]
[1673341038658,2.18828866,17267.0,17266.0,0.135]
[1673341041161,1.84041799,17267.0,17266.0,0.135]
[1673341045876,1.84041799,17267.0,17266.0,0.13488848]
[1673341049379,2.01395996,17267.0,17266.0,0.13488848]
[1673341050670,1.84585996,17267.0,17266.0,0.13488848]
[1673341051162,1.84585996,17267.0,17266.0,0.22154269]
[1673341052900,1.67230827,17267.0,17266.0,0.22154269]
[1673341053392,1.24400877,17267.0,17266.0,0.22154269]
[1673341056659,1.50420827,17267.0,17266.0,0.22154269]
[1673341061392,1.85121652,17267.0,17266.0,0.22154269]
[1673341061639,1.67775996,17267.0,17266.0,0.22154269]
[1673341064618,1.85208866,17267.0,17266.0,0.22154269]
[1673341064874,2.11246673,17267.0,17266.0,0.22154269]
[1673341065139,1.85208866,17267.0,17266.0,0.22154269]
[1673341065637,2.1124666,17267.0,17266.0,0.22154269]
[1673341065886,1.85208866,17267.0,17266.0,0.22154269]
[1673341066142,1.85208866,17267.0,17266.0,0.22143191]
[1673341066646,3.01097422,17267.0,17266.0,0.22143191]
[1673341067638,2.66396597,17267.0,17266.0,0.22143191]
[1673341068139,2.22943777,17267.0,17266.0,0.22143191]
[1673341070009,2.66354903,17267.0,17266.0,0.22143191]
[1673341070286,2.22943777,17267.0,17266.0,0.22143191]
[1673341070542,2.66364213,17267.0,17266.0,0.22143191]
[1673341072306,2.22943777,17267.0,17266.0,0.22143191]
[1673341074070,2.66365989,17267.0,17266.0,0.22143191]
[1673341075586,2.22943777,17267.0,17266.0,0.22143191]
[1673341076872,2.22943777,17267.0,17266.0,0.28324491]
[1673341077144,2.66366795,17267.0,17266.0,0.28324491]
[1673341080620,3.01105994,17267.0,17266.0,0.28324491]
[1673341085475,2.66366795,17267.0,17266.0,0.28324491]
[1673341086236,2.66369882,17267.0,17266.0,0.2831679]
[1673341086484,2.66369853,17267.0,17266.0,0.2831679]
[1673341087777,2.22943777,17267.0,17266.0,0.2831679]
[1673341088295,2.66369596,17267.0,17266.0,0.2831679]
[1673341089084,2.83139596,17267.0,17266.0,0.2831679]
[1673341090127,3.17879251,17267.0,17266.0,0.2831679]
[1673341091658,3.43933159,17267.0,17266.0,0.2831679]
[1673341091923,3.17879251,17267.0,17266.0,0.2831679]
[1673341093486,3.00506799,17267.0,17266.0,0.2831679]
[1673341096540,2.28281215,17267.0,17266.0,0.2831679]
[1673341096792,2.28281215,17267.0,17266.0,0.91531892]
[1673341099331,2.6302087,17267.0,17266.0,0.91531892]
[1673341100378,2.63018268,17267.0,17266.0,0.91531892]
[1673341100631,2.28278613,17267.0,17266.0,0.91531892]
[1673341101651,2.63018268,17267.0,17266.0,0.91531892]
[1673341101897,2.28278613,17267.0,17266.0,0.91531892]
[1673341102664,2.45653268,17267.0,17266.0,0.2831679]
[1673341102915,2.6302572,17267.0,17266.0,0.2831679]
[1673341104994,2.63016939,17267.0,17266.0,0.2831679]
[1673341105232,2.45638236,17267.0,17266.0,0.2831679]
[1673341107065,2.63002159,17267.0,17266.0,0.2831679]
[1673341107366,2.45638236,17267.0,17266.0,0.2831679]
[1673341108844,2.28868236,17267.0,17266.0,0.2831679]
[1673341109393,2.46232055,17267.0,17266.0,0.2831679]
[1673341109942,2.28868236,17267.0,17266.0,0.2831679]
[1673341115964,2.46246939,17267.0,17266.0,0.2831679]
[1673341117914,2.11507284,17267.0,17266.0,0.2831679]
[1673341120186,2.81437659,17267.0,17266.0,0.2831679]
[1673341120668,2.3801184,17267.0,17266.0,0.2831679]
[1673341121440,2.81434804,17267.0,17266.0,0.2831679]
[1673341121945,2.81434803,17267.0,17266.0,0.2831679]
[1673341122200,2.3801184,17267.0,17266.0,0.2831679]
[1673341123498,2.81428126,17267.0,17266.0,0.2831679]
[1673341124770,2.29326436,17267.0,17266.0,0.2831679]
[1673341125577,1.8591015,17267.0,17266.0,0.2831679]
[1673341125836,2.29323651,17267.0,17266.0,0.2831679]
[1673341126056,2.29323818,17267.0,17266.0,0.2831679]
[1673341126369,2.29323818,17267.0,17266.0,0.28310513]
[1673341129010,2.45973818,17267.0,17266.0,0.28310513]
[1673341130257,2.45882599,17267.0,17266.0,0.14846721]
[1673341130514,2.46082599,17267.0,17266.0,0.28846721]
[1673341131026,2.45982599,17267.0,17266.0,0.21546721]
[1673341132688,2.02568931,17267.0,17266.0,0.21546721]
[1673341137485,2.02568931,17267.0,17266.0,0.20402144]
[1673341137765,2.54718319,17267.0,17266.0,0.20402144]
[1673341138008,2.40742282,17267.0,17266.0,0.20402144]
[1673341138256,3.43849127,17267.0,17266.0,0.20402144]
[1673341138509,2.97747845,17267.0,17266.0,0.20402144]
[1673341138763,3.75377215,17267.0,17266.0,0.20402144]
[1673341139017,3.89753782,17267.0,17266.0,0.20402144]
[1673341139270,3.81425321,17267.0,17266.0,0.18341211]
[1673341139527,4.22920671,17267.0,17266.0,0.18341211]
[1673341139778,3.65981412,17267.0,17266.0,0.11641211]
[1673341140029,3.69224845,17267.0,17266.0,0.11641211]
[1673341140289,4.42154787,17267.0,17266.0,0.11641211]
[1673341140550,4.42054871,17267.0,17266.0,0.11641211]
[1673341140822,5.60439897,17267.0,17266.0,0.12741211]
[1673341141079,5.60439897,17267.0,17266.0,0.11641211]
[1673341141080,3.83501412,17267.0,17266.0,0.11641211]
[1673341141333,3.86601412,17267.0,17266.0,0.12741211]
[1673341141621,5.57339897,17267.0,17266.0,0.11641211]
[1673341141839,5.60439897,17267.0,17266.0,0.12741211]
[1673341142091,3.57644412,17267.0,17266.0,0.12741211]
[1673341142602,4.01821693,17267.0,17266.0,0.12741211]
[1673341142858,4.1619826,17267.0,17266.0,0.12741211]
[1673341143370,3.57644412,17267.0,17266.0,0.12741211]
[1673341143614,4.16198494,17267.0,17266.0,0.12741211]
[1673341144850,4.741376,17267.0,17266.0,0.12741211]
[1673341145068,5.89422003,17267.0,17266.0,0.12741211]
[1673341145571,6.47946379,17267.0,17266.0,0.12741211]
[1673341146071,5.89422003,17267.0,17266.0,0.12741211]
[1673341146577,4.74084211,17267.0,17266.0,0.12741211]
[1673341146828,6.47922696,17267.0,17266.0,0.12741211]
[1673341147129,5.89422003,17267.0,17266.0,0.09452142]
[1673341149433,5.89422003,17267.0,17266.0,0.08026429]
[1673341150169,6.18380003,17267.0,17266.0,0.08026429]
[1673341150416,6.76838024,17267.0,17266.0,0.08026429]
[1673341155098,6.76838024,17267.0,17266.0,0.06013297]
[1673341155341,6.7256563,17267.0,17266.0,0.06013297]
[1673341157702,7.06063704,17267.0,17266.0,0.06013297]
[1673341159572,7.06046578,17267.0,17266.0,0.06013297]
[1673341159818,6.47605683,17267.0,17266.0,0.06013297]
[1673341160591,6.14107609,17267.0,17266.0,0.06013297]
[1673341160850,6.72544874,17267.0,17266.0,0.06013297]
[1673341163094,6.72544874,17267.0,17266.0,0.04549374]
[1673341166690,6.08557662,17267.0,17266.0,0.04549374]
[1673341166938,5.79599662,17267.0,17266.0,0.04549374]
[1673341167406,5.21162397,17267.0,17266.0,0.04549374]
[1673341168225,5.79599662,17267.0,17266.0,0.04549374]
[1673341169005,5.62929662,17267.0,17266.0,0.04549374]
[1673341169523,6.20868768,17267.0,17266.0,0.04549374]
[1673341169779,4.47030283,17267.0,17266.0,0.04549374]
[1673341171556,3.88593018,17267.0,17266.0,0.04549374]
[1673341172058,4.47030283,17267.0,17266.0,0.04549374]
[1673341172591,3.80411294,17267.0,17266.0,0.04549374]
[1673341172849,2.03383323,17267.0,17266.0,0.04549374]
[1673341173105,2.55397683,17267.0,17266.0,0.04549374]
[1673341174123,2.03383323,17267.0,17266.0,0.04549374]
[1673341174383,3.02693094,17267.0,17266.0,0.04549374]
[1673341175393,2.75807981,17267.0,17266.0,0.04549374]
[1673341176158,3.34245246,17267.0,17266.0,0.04549374]
[1673341178743,2.91820588,17267.0,17266.0,0.04549374]
[1673341178991,3.5771647,17267.0,17266.0,0.04549374]
[1673341179776,5.46146985,17267.0,17266.0,0.04549374]
[1673341180026,3.723085,17267.0,17266.0,0.04549374]
[1673341180288,2.91820588,17267.0,17266.0,0.04549374]
[1673341180540,3.47499217,17267.0,17266.0,0.04549374]
[1673341180803,2.91820588,17267.0,17266.0,0.04549374]